bitfinex-derivatives/quotes_SOLF0:USTF0_20260316
["timestamp","ask_amount","ask_price","bid_price","bid_amount"]
[1773649549783,4.16732322,93.559,93.5,3.64974687]
[1773649550884,4.01759946,93.549,93.5,3.64974687]
[1773649552588,3.64974687,93.56,93.51,3.64974687]
[1773649552794,3.941297,93.563,93.51,3.64974687]
[1773649553193,3.941297,93.559,93.5,3.64974687]
[1773649553397,3.941297,93.559,93.51,3.64974687]
[1773649554990,3.941297,93.559,93.5,3.64974687]
[1773649555197,19.225,93.614,93.49,3.64974687]
[1773649555198,3.96686129,93.549,93.49,3.64974687]
[1773649564791,3.96686129,93.549,93.5,3.64974687]
[1773649566900,3.96686129,93.549,93.482,33.66]
[1773649567200,19.229,93.593,93.52,3.64974687]
[1773649567201,4.0077991,93.569,93.52,3.64974687]
[1773649567604,3.64974687,93.58,93.483,19.251]
[1773649567802,4.00641344,93.579,93.53,3.64974687]
[1773649568099,4.00641344,93.579,93.52,3.64974687]
[1773649568302,4.00641344,93.579,93.53,3.64974687]
[1773649568505,4.02724123,93.569,93.51,3.64974687]
[1773649568905,33.66,93.611,93.51,3.64974687]
[1773649568906,4.02724123,93.559,93.51,3.64974687]
[1773649569206,4.05709036,93.549,93.49,3.64974687]
[1773649572398,4.05920288,93.539,93.48,3.64974687]
[1773649572603,4.05920288,93.529,93.48,3.64974687]
[1773649576706,4.04164947,93.519,93.46,3.64974687]
[1773649576911,4.04164947,93.509,93.45,3.64974687]
[1773649577108,4.04164947,93.509,93.46,3.64974687]
[1773649577907,4.03377526,93.499,93.44,3.64974687]
[1773649578112,4.03377526,93.489,93.44,3.64974687]
[1773649580905,19.241,93.533,93.44,3.64974687]
[1773649580906,4.02664747,93.532,93.44,3.64974687]
[1773649581110,4.02664747,93.509,93.45,3.64974687]
[1773649581312,4.02664747,93.509,93.46,3.64974687]
[1773649582313,4.0400425,93.499,93.44,3.64974687]
[1773649582512,3.64974687,93.49,93.44,3.64974687]
[1773649582704,4.0400425,93.489,93.44,3.64974687]
[1773649587009,4.0400425,93.489,93.44,3.66217315]
[1773649588308,4.0400425,93.489,93.43,3.66217315]
[1773649589816,4.06424332,93.479,93.43,3.66217315]
[1773649591520,4.06424332,93.479,93.44,3.66217315]
[1773649592215,4.06424332,93.479,93.43,3.66217315]
[1773649592818,4.05558935,93.493,93.44,3.66217315]
[1773649597525,4.08311394,93.479,93.42,3.66217315]
[1773649598121,4.08311394,93.479,93.43,3.66217315]
[1773649598323,4.08234228,93.489,93.43,3.66217315]
[1773649599527,4.08234228,93.489,93.44,3.66217315]
[1773649600524,4.05890437,93.502,93.45,3.66217315]
[1773649600724,4.05890437,93.5,93.45,3.66217315]
[1773649600929,4.05890437,93.499,93.45,3.66217315]
[1773649601224,4.05890437,93.499,93.46,3.66217315]
[1773649601626,4.10696772,93.519,93.46,3.66217315]
[1773649602430,4.12723227,93.509,93.46,3.66217315]
[1773649602727,4.12723227,93.489,93.419,13.22200495]
[1773649602931,4.12723227,93.469,93.41,3.66217315]
[1773649603230,4.12723227,93.469,93.377,19.83300743]
[1773649603231,3.66217315,93.45,93.4,3.66217315]
[1773649603431,4.14179931,93.459,93.4,3.66217315]
[1773649604127,4.14179931,93.459,93.386,1.86233193]
[1773649604332,4.09855745,93.449,93.39,3.66217315]
[1773649605235,4.09855745,93.449,93.4,3.66217315]
[1773649606634,4.09855745,93.449,93.39,3.66217315]
[1773649608433,4.09855745,93.449,93.4,3.66217315]
[1773649611344,4.09855745,93.449,93.39,3.66217315]
[1773649611936,4.09855745,93.449,93.4,3.66217315]
[1773649618438,4.09855745,93.449,93.38,33.66]
[1773649618638,4.09855745,93.449,93.4,3.66217315]
[1773649620856,4.08410811,93.469,93.42,3.66217315]
[1773649622055,4.08453787,93.489,93.44,3.66217315]
[1773649622750,4.08453787,93.489,93.43,3.66217315]
[1773649622951,4.09270528,93.479,93.42,3.66217315]
[1773649623553,4.09270528,93.479,93.43,3.66217315]
[1773649624646,4.09270528,93.479,93.44,3.66217315]
[1773649624846,4.10152788,93.499,93.44,3.66217315]
[1773649626449,3.66217315,93.49,93.44,3.66217315]
[1773649626657,4.1103543,93.489,93.44,3.66217315]
[1773649627055,4.1103543,93.489,93.43,3.66217315]
[1773649633360,4.09762671,93.479,93.43,3.66217315]
[1773649633562,4.09762671,93.469,93.41,3.66217315]
[1773649633763,4.09762671,93.459,93.41,3.66217315]
[1773649635167,4.12533439,93.474,93.42,3.66217315]
[1773649635369,4.12533439,93.474,93.43,3.66217315]
[1773649636861,4.12533439,93.474,93.44,3.66217315]
[1773649637067,4.12932857,93.499,93.45,3.66217315]
[1773649640976,4.12932857,93.499,93.46,3.66217315]
[1773649642275,4.12932857,93.499,93.424,19.83300743]
[1773649642276,4.12932857,93.499,93.435,13.22200495]
[1773649642468,4.12932857,93.499,93.46,3.66217315]
[1773649646674,4.12932857,93.499,93.45,3.66217315]
[1773649648974,4.12932857,93.499,93.45,3.66110756]
[1773649650782,4.20176707,93.479,93.43,3.66110756]
[1773649651284,4.20176707,93.479,93.42,3.66110756]
[1773649651674,4.20176707,93.479,93.43,3.66110756]
[1773649654075,4.20176707,93.479,93.44,3.66110756]
[1773649654781,4.20176707,93.479,93.43,3.66110756]
[1773649656182,4.20176707,93.479,93.407,13.22200495]
[1773649656485,4.20176707,93.479,93.43,3.66110756]
[1773649656880,4.20176707,93.479,93.405,1.86164949]
[1773649657086,4.18035334,93.469,93.42,3.66110756]
[1773649658281,4.19945967,93.482,93.43,3.66110756]
[1773649661786,4.20415808,93.479,93.43,3.66110756]
[1773649664591,4.2084086,93.495,93.415,13.22200495]
[1773649664788,4.2084086,93.495,93.45,3.66110756]
[1773649664984,4.2084086,93.489,93.43,3.66110756]
[1773649668693,4.20801724,93.479,93.424,13.22200495]
[1773649668893,4.20801724,93.479,93.423,13.22200495]
[1773649669094,4.20801724,93.479,93.43,3.66110756]
[1773649672095,4.19939281,93.493,93.44,3.66110756]
[1773649672491,3.66110756,93.49,93.44,3.66110756]
[1773649672793,4.19919358,93.479,93.423,13.22200495]
[1773649673391,4.19919358,93.479,93.43,3.66110756]
[1773649673989,4.19919358,93.479,93.419,13.22200495]
[1773649674195,4.19919358,93.479,93.43,3.66110756]
[1773649678705,4.24218726,93.499,93.44,3.66110756]
[1773649680701,4.24218726,93.499,93.45,3.66110756]
[1773649682399,4.23262939,93.479,93.435,13.22200495]
[1773649682603,19.243,93.523,93.425,13.22200495]
[1773649682604,4.23262939,93.469,93.425,13.22200495]
[1773649682896,4.23262939,93.469,93.414,13.22200495]
[1773649683298,9.92764348,93.505,93.413,33.66]
[1773649683299,4.22408877,93.459,93.413,46.88200495]
[1773649685206,4.22408877,93.459,93.413,33.66]
[1773649686004,4.22408877,93.459,93.4,3.66110756]
[1773649686213,4.19884625,93.439,93.39,3.66110756]
[1773649689513,4.19884625,93.439,93.382,33.66]
[1773649691711,4.19884625,93.439,93.39,3.66110756]
[1773649695612,4.19884625,93.439,93.382,33.66]
[1773649695817,4.19884625,93.439,93.39,3.66110756]
[1773649697517,4.07127175,93.45,93.382,33.66]
[1773649697716,4.07127175,93.465,93.41,3.66110756]
[1773649698525,4.08019691,93.459,93.41,3.66110756]
[1773649699722,4.08019691,93.459,93.383,13.22200495]
[1773649700021,4.08019691,93.459,93.41,3.66110756]
[1773649702627,3.66110756,93.47,93.42,3.66110756]
[1773649702828,4.11068924,93.469,93.42,3.66110756]
[1773649703131,4.11068924,93.469,93.41,3.66110756]
[1773649707129,4.11085256,93.459,93.4,3.66110756]
[1773649707529,4.1138966,93.449,93.39,3.66110756]
[1773649707734,4.1138966,93.449,93.4,3.66110756]
[1773649708433,4.1138966,93.449,93.39,3.66110756]
[1773649708833,4.1138966,93.449,93.39,3.66581347]
[1773649710030,4.1138966,93.449,93.4,3.66581347]
[1773649711732,4.1138966,93.449,93.385,13.22200495]
[1773649712032,4.1138966,93.449,93.39,3.66581347]
[1773649713043,4.1138966,93.449,93.4,3.66581347]
[1773649714044,4.1138966,93.449,93.39,3.66581347]
[1773649715643,4.1138966,93.449,93.4,3.66581347]
[1773649715845,4.1138966,93.449,93.39,3.66581347]
[1773649718042,10.68,93.501,93.382,33.66]
[1773649718043,4.03799398,93.429,93.382,33.66]
[1773649718240,3.99879375,93.419,93.36,3.66581347]
[1773649723547,3.96462147,93.409,93.35,3.66581347]
[1773649723746,3.96462147,93.399,93.35,3.66581347]
[1773649723952,3.96462147,93.399,93.342,46.90200495]
[1773649723953,3.96462147,93.399,93.342,33.68]
[1773649724349,3.66581347,93.38,93.33,3.66581347]
[1773649724551,3.96239594,93.379,93.32,3.66581347]
[1773649725246,3.96239594,93.379,93.321,0.04170075]
[1773649726754,3.96239594,93.379,93.33,3.66581347]
[1773649729658,3.96239594,93.379,93.321,0.04170075]
[1773649732558,3.96239594,93.379,93.33,3.66581347]
[1773649734558,3.95843835,93.369,93.321,0.04170075]
[1773649734963,3.95843835,93.369,93.31,3.66581347]
[1773649735151,19.264,93.421,93.31,3.66581347]
[1773649735152,3.95843835,93.359,93.31,3.66581347]
[1773649735756,3.95185025,93.379,93.32,3.66581347]
[1773649738759,3.95185025,93.379,93.33,3.66581347]
[1773649739555,3.95185025,93.379,93.303,33.68]
[1773649739756,3.95185025,93.379,93.33,3.66581347]
[1773649740862,3.95185025,93.379,93.303,33.68]
[1773649740863,3.96303556,93.392,93.35,3.66581347]
[1773649741157,3.96303556,93.392,93.34,3.66581347]
[1773649741754,3.66581347,93.39,93.34,3.66581347]
[1773649741964,3.94619809,93.389,93.34,3.66581347]
[1773649742263,3.9509237,93.379,93.32,3.66581347]
[1773649742463,3.9509237,93.369,93.32,3.66581347]
[1773649742659,3.9509237,93.359,93.306,33.68]
[1773649742861,3.9509237,93.349,93.3,3.66581347]
[1773649743061,3.9509237,93.349,93.29,3.66581347]
[1773649743363,3.9509237,93.339,93.29,3.66581347]
[1773649743964,3.9509237,93.339,93.3,3.66581347]
[1773649744663,3.97221458,93.353,93.31,3.66581347]
[1773649745058,3.97221458,93.353,93.32,3.66581347]
[1773649746257,3.97221458,93.353,93.31,3.66581347]
[1773649749566,3.97221458,93.353,93.3,3.66581347]
[1773649750168,3.98497737,93.349,93.29,3.66581347]
[1773649751265,4.08020728,93.339,93.29,3.66581347]
[1773649752766,4.08020728,93.339,93.3,3.66581347]
[1773649752965,4.07433928,93.355,93.3,3.66581347]
[1773649753170,4.07433928,93.349,93.29,3.66581347]
[1773649753672,4.07084144,93.329,93.28,3.66581347]
[1773649754065,4.07084144,93.329,93.27,3.66581347]
[1773649756170,4.07084144,93.329,93.28,3.66581347]
[1773649757666,4.07084144,93.329,93.29,3.66581347]
[1773649757874,4.07084144,93.329,93.3,3.66581347]
[1773649758068,4.07084144,93.329,93.29,3.66581347]
[1773649758568,4.07084144,93.329,93.28,3.66581347]
[1773649758973,4.07084144,93.329,93.29,3.66581347]
[1773649759974,4.07084144,93.329,93.28,3.66581347]
[1773649760171,4.07084144,93.329,93.271,2.28284261]
[1773649760172,1.59034704,93.329,93.271,2.28284261]
[1773649760375,1.59034704,93.329,93.27,3.66581347]
[1773649761482,19.278,93.356,93.247,2.30376757]
[1773649761683,3.66581347,93.3,93.247,2.30376757]
[1773649762087,3.69910046,93.299,93.247,2.30376757]
[1773649763886,3.69910046,93.299,93.26,3.66581347]
[1773649765483,3.69910046,93.289,93.24,3.66581347]
[1773649766787,3.69910046,93.289,93.25,3.66581347]
[1773649766982,3.69910046,93.309,93.26,3.66581347]
[1773649768789,3.69910046,93.309,93.26,3.6764301]
[1773649768986,3.69910046,93.309,93.26,5.97779732]
[1773649769882,3.69910046,93.309,93.26,2.30136722]
[1773649770086,3.69910046,93.309,93.26,5.97779732]
[1773649771280,3.69910046,93.309,93.223,13.22200495]
[1773649771281,3.69910046,93.309,93.27,3.6764301]
[1773649772483,3.69910046,93.309,93.261,2.35754284]
[1773649774084,3.69910046,93.319,93.27,5.98542222]
[1773649774284,3.69910046,93.319,93.271,2.30899212]
[1773649774490,3.69910046,93.319,93.28,3.6764301]
[1773649774689,3.69910046,93.319,93.271,2.30899212]
[1773649775084,3.69910046,93.333,93.29,3.6764301]
[1773649775292,3.69910046,93.333,93.29,5.99539941]
[1773649775492,3.69910046,93.333,93.3,3.6764301]
[1773649777296,3.69910046,93.349,93.31,3.6764301]
[1773649778692,3.69910046,93.349,93.301,2.30317824]
[1773649779684,3.69910046,93.349,93.29,3.6764301]
[1773649779889,3.69910046,93.349,93.287,2.2807554]
[1773649780190,3.69910046,93.349,93.29,3.6764301]
[1773649780391,3.69910046,93.349,93.3,3.6764301]
[1773649781392,3.69910046,93.349,93.29,3.6764301]
[1773649783192,3.69910046,93.339,93.28,3.6764301]
[1773649785498,3.69910046,93.329,93.28,3.6764301]
[1773649787094,3.69910046,93.329,93.28,5.93753047]
[1773649788000,3.69910046,93.329,93.281,2.26561778]
[1773649788998,3.69910046,93.329,93.29,3.6764301]
[1773649789397,3.69910046,93.349,93.3,3.6764301]
[1773649789998,3.69910046,93.339,93.29,3.6764301]
[1773649790198,3.69910046,93.339,93.262,46.3208827]
[1773649790395,3.69910046,93.339,93.29,3.6764301]
[1773649794004,3.69910046,93.339,93.29,3.6764301]
[1773649794401,3.69910046,93.339,93.262,33.68]
[1773649794601,3.69910046,93.339,93.3,3.6764301]
[1773649794801,3.96067676,93.329,93.28,3.6764301]
[1773649796511,3.96067676,93.329,93.27,3.6764301]
[1773649797712,3.96067676,93.329,93.28,3.6764301]
[1773649799014,3.96067676,93.329,93.27,3.6764301]
[1773649800214,4.00997924,93.319,93.26,3.6764301]
[1773649800713,4.00997924,93.319,93.27,3.6764301]
[1773649801813,4.00997924,93.319,93.26,3.6764301]
[1773649804617,4.00997924,93.319,93.28,3.6764301]
[1773649805616,4.00997924,93.319,93.27,3.6764301]
[1773649808717,4.0034919,93.335,93.28,3.6764301]
[1773649808917,3.6764301,93.33,93.244,19.301]
[1773649809115,4.0034919,93.319,93.27,3.6764301]
[1773649809319,4.0034919,93.319,93.26,3.6764301]
[1773649810225,4.00854638,93.309,93.25,3.6764301]
[1773649812022,4.00854638,93.309,93.26,3.6764301]
[1773649812619,4.00854638,93.309,93.27,3.6764301]
[1773649812924,4.00854638,93.309,93.26,3.6764301]
[1773649813318,33.7,93.356,93.274,19.295]
[1773649813522,4.05304715,93.355,93.3,3.6764301]
[1773649813720,4.05304715,93.349,93.259,20.00606024]
[1773649814023,4.05304715,93.349,93.29,3.6764301]
[1773649814525,4.05304715,93.349,93.196,107.284]
[1773649814526,3.95917763,93.329,93.28,3.6764301]
[1773649814719,3.95917763,93.329,93.27,3.6764301]
[1773649815223,3.88534067,93.319,93.27,3.6764301]
[1773649815425,3.88534067,93.319,93.268,0.09209342]
[1773649820926,3.88534067,93.319,93.271,0.1896014]
[1773649826530,3.89707723,93.309,93.26,13.34646895]
[1773649826835,3.89707723,93.309,93.257,0.10718466]
[1773649827134,3.89707723,93.309,93.261,0.10718465]
[1773649828936,3.89707723,93.309,93.273,10.01475083]
[1773649830138,3.89707723,93.309,93.271,10.01475083]
[1773649832439,3.89707723,93.309,93.273,10.01475083]
[1773649833040,3.89707723,93.309,93.277,10.01475083]
[1773649833240,3.89707723,93.309,93.281,10.01475083]
[1773649833734,3.89707723,93.309,93.273,10.01475083]
[1773649834040,3.89707723,93.309,93.272,10.01475083]
[1773649834336,3.89707723,93.309,93.273,10.01475083]
[1773649835234,3.89707723,93.309,93.274,10.01475083]
[1773649835842,3.89707723,93.309,93.273,10.01475083]
[1773649836239,3.89707723,93.309,93.274,10.01475083]
[1773649836835,3.89707723,93.309,93.269,10.01475083]
[1773649837142,3.93566664,93.299,93.268,10.01475083]
[1773649837341,3.93566664,93.299,93.269,10.01475083]
[1773649837542,3.93566664,93.299,93.265,10.01475083]
[1773649837740,3.89707723,93.289,93.241,20.00606024]
[1773649837941,3.67642034,93.25,93.203,20.04505618]
[1773649838139,3.67642034,93.23,93.192,12.75683011]
[1773649840141,3.67642034,93.23,93.171,12.79357164]
[1773649840442,3.67642034,93.22,93.171,12.79357164]
[1773649842138,3.67642034,93.23,93.171,12.79357164]
[1773649842741,3.67642034,93.24,93.181,12.80471499]
[1773649843541,3.67642034,93.23,93.181,12.80471499]
[1773649843747,19.288,93.306,93.191,12.77404645]
[1773649843948,9.96115888,93.328,93.211,12.77404645]
[1773649844145,3.67642034,93.26,93.211,12.77404645]
[1773649844346,9.96115888,93.329,93.198,12.75099915]
[1773649844646,3.67642034,93.25,93.2,3.67642034]
[1773649844846,3.67642034,93.25,93.198,12.75099915]
[1773649844847,19.285,93.319,93.198,12.75099915]
[1773649845146,3.67642034,93.24,93.198,12.75099915]
[1773649845845,3.67642034,93.24,93.183,12.72464385]
[1773649847650,3.67642034,93.22,93.168,12.70056051]
[1773649847846,3.67642034,93.22,93.171,12.70056051]
[1773649848146,3.67642034,93.23,93.171,12.70056051]
[1773649848346,3.67642034,93.22,93.171,12.70056051]
[1773649848946,3.67642034,93.23,93.181,12.69369833]
[1773649850542,3.67642034,93.22,93.181,12.69369833]
[1773649850740,3.67642034,93.23,93.181,12.69369833]
[1773649851044,1.86687267,93.275,93.181,12.69369833]
[1773649851249,3.67642034,93.23,93.181,12.69369833]
[1773649855049,3.67642034,93.24,93.181,12.69369833]
[1773649855354,3.67642034,93.23,93.181,12.69369833]
[1773649856653,3.67642034,93.25,93.191,12.65536223]
[1773649856956,3.67642034,93.24,93.191,12.65536223]
[1773649859063,3.67642034,93.25,93.201,12.66384243]
[1773649859955,3.67642034,93.24,93.19,3.67642034]
[1773649860153,3.67642034,93.24,93.187,12.66304102]
[1773649860352,3.67642034,93.24,93.153,19.319]
[1773649860353,3.67642034,93.24,93.191,12.66321333]
[1773649861062,3.67642034,93.26,93.211,12.66321333]
[1773649861460,3.67642034,93.25,93.2,3.67642034]
[1773649861660,3.67642034,93.25,93.197,12.66349758]
[1773649861961,3.67642034,93.24,93.197,12.66349758]
[1773649862258,3.67642034,93.23,93.181,12.66349758]
[1773649863167,3.67642034,93.21,93.166,12.7931133]
[1773649863867,3.67642034,93.2,93.166,12.7931133]
[1773649864064,3.67642034,93.18,93.133,1.86687767]
[1773649864266,3.67642034,93.18,93.132,12.82352039]
[1773649864564,3.67642034,93.19,93.132,12.82352039]
[1773649865167,19.303,93.233,93.14,3.67642034]
[1773649865467,3.67642034,93.2,93.141,12.83444755]
[1773649865862,3.67642034,93.19,93.141,12.83444755]
[1773649867260,3.67642034,93.18,93.141,12.83444755]
[1773649867465,3.67642034,93.18,93.127,12.79877575]
[1773649867666,3.67642034,93.14,93.1,7.244e-05]
[1773649867969,3.67642034,93.11,93.051,12.79877575]
[1773649868162,107.277,93.202,93.071,12.79877575]
[1773649868163,9.84961142,93.187,93.071,12.79877575]
[1773649868363,3.67642034,93.13,93.081,12.81354386]
[1773649868565,3.67642034,93.11,93.061,12.81354386]
[1773649868759,9.22974193,93.14,93.061,12.81354386]
[1773649869169,7.97847752,93.179,93.022,12.81354386]
[1773649869464,9.22974193,93.12,93.031,12.79707729]
[1773649870164,33.72,93.13,93.031,12.79707729]
[1773649870365,9.22974193,93.1,93.031,12.79707729]
[1773649871078,33.72,93.13,93.031,12.79707729]
[1773649871871,9.22974193,93.12,93.031,12.79707729]
[1773649872670,33.72,93.13,93.031,12.79707729]
[1773649872871,19.311,93.197,93.051,12.65589089]
[1773649872872,9.22974193,93.15,93.051,12.65589089]
[1773649874163,9.22974193,93.15,93.061,12.65241659]
[1773649874364,9.22974193,93.16,93.061,12.65241659]
[1773649875762,33.72,93.162,93.081,12.56690928]
[1773649875966,9.22974193,93.16,93.081,12.56690928]
[1773649880175,42.94974193,93.16,93.081,12.56690928]
[1773649881976,33.72,93.16,93.081,12.56690928]
[1773649882481,33.72,93.186,93.101,12.60292651]
[1773649882881,9.22974193,93.18,93.101,12.60292651]
[1773649883082,33.72,93.186,93.101,12.60292651]
[1773649883679,33.72,93.212,93.121,12.60226598]
[1773649883884,33.72,93.215,93.121,12.60226598]
[1773649884483,9.22974193,93.22,93.121,12.60226598]
[1773649884785,9.22974193,93.23,93.141,12.59752677]
[1773649885580,9.22974193,93.21,93.141,12.59752677]
[1773649886285,33.72,93.209,93.141,12.59752677]
[1773649886476,9.22974193,93.19,93.124,12.56269947]
[1773649889788,33.72,93.209,93.124,12.56269947]
[1773649890880,3.68604849,93.19,93.141,12.57330941]
[1773649891983,33.72,93.209,93.141,12.57330941]
[1773649892188,33.72,93.209,93.151,12.55735384]
[1773649892687,3.68604849,93.2,93.151,12.55735384]
[1773649892888,33.72,93.209,93.151,12.55735384]
[1773649896586,9.21333956,93.2,93.134,12.54789711]
[1773649897491,9.21333956,93.2,93.134,11.55369248]
[1773649899891,9.21333956,93.2,93.101,12.0613864]
[1773649900092,9.21333956,93.18,93.101,12.0613864]
[1773649900487,9.21333956,93.16,93.101,12.0613864]
[1773649900692,33.72,93.159,93.101,12.0613864]
[1773649905096,33.72,93.187,93.101,12.0613864]
[1773649906191,9.21333956,93.21,93.121,12.02662093]
[1773649914798,3.68668509,93.18,93.131,12.03527342]
[1773649915002,37.40668509,93.19,93.131,12.03527342]
[1773649915204,3.68668509,93.19,93.131,12.03527342]
[1773649915404,3.68668509,93.18,93.131,12.03527342]
[1773649916599,33.72,93.191,93.141,12.05063603]
[1773649916999,33.72,93.191,93.151,12.05063603]
[1773649917402,3.68668509,93.19,93.151,12.05063603]
[1773649917603,3.68668509,93.2,93.151,12.05063603]
[1773649918907,3.68668509,93.21,93.151,12.05063603]
[1773649919107,3.68668509,93.21,93.16,3.68668509]
[1773649919302,3.68668509,93.21,93.161,11.976072]
[1773649919507,33.72,93.212,93.161,11.976072]
[1773649921010,3.68668509,93.23,93.171,11.97167373]
[1773649921613,3.68668509,93.22,93.171,11.97167373]
[1773649921810,7.92470983,93.234,93.119,20.05428544]
[1773649921811,3.68668509,93.2,93.12,11.98482604]
[1773649922112,7.92470983,93.234,93.151,11.98482604]
[1773649922113,3.68668509,93.21,93.151,11.98482604]
[1773649924716,3.68668509,93.19,93.151,11.98482604]
[1773649925115,3.68668509,93.2,93.151,11.98482604]
[1773649925520,3.68668509,93.19,93.151,11.98482604]
[1773649925820,3.68668509,93.18,93.151,11.98482604]
[1773649927711,3.68668509,93.19,93.151,11.98482604]
[1773649928015,3.68668509,93.18,93.151,11.98482604]
[1773649928614,3.68668509,93.17,93.137,12.06207479]
[1773649929311,3.68668509,93.17,93.098,33.72]
[1773649929312,3.68668509,93.16,93.111,12.06068227]
[1773649929515,3.68668509,93.14,93.111,12.06068227]
[1773649930711,3.68668509,93.15,93.111,12.06068227]
[1773649934916,9.22383208,93.17,93.111,12.06068227]
[1773649947727,9.22383208,93.19,93.111,12.06068227]
[1773649947926,7.92470983,93.202,93.111,12.06068227]
[1773649948831,33.72,93.203,93.111,12.06068227]
[1773649952943,33.72,93.203,93.131,12.02378435]
[1773649956948,3.68616454,93.19,93.131,12.02378435]
[1773649957947,3.68616454,93.19,93.141,12.02122372]
[1773649961250,3.68616454,93.18,93.141,12.02122372]
[1773649961848,3.68616454,93.19,93.141,12.02122372]
[1773649962040,3.68616454,93.2,93.141,12.02122372]
[1773649962246,3.68616454,93.19,93.151,12.02745468]
[1773649963755,33.72,93.203,93.151,12.02745468]
[1773649963945,3.68616454,93.22,93.171,12.02730526]
[1773649964252,3.68616454,93.23,93.171,12.02730526]
[1773649966046,3.68616454,93.23,93.181,12.01192058]
[1773649966446,33.74,93.238,93.181,12.01192058]
[1773649966652,3.68616454,93.23,93.181,12.01192058]
[1773649966951,3.68616454,93.22,93.181,12.01192058]
[1773649967953,3.68616454,93.22,93.167,11.94213475]
[1773649968354,3.68616454,93.22,93.171,11.94213475]
[1773649971653,3.68616454,93.21,93.171,11.94213475]
[1773649972152,3.68616454,93.22,93.171,11.94213475]
[1773649972753,3.68616454,93.23,93.171,11.94213475]
[1773649973348,3.68616454,93.23,93.18,3.68616454]
[1773649973546,3.68616454,93.23,93.181,11.9263663]
[1773649977453,3.68616454,93.22,93.181,11.9263663]
[1773649977759,3.68616454,93.22,93.16,3.68616454]
[1773649977760,3.68616454,93.21,93.161,11.88696294]
[1773649978060,33.74,93.235,93.161,11.88696294]
[1773649978061,3.68616454,93.22,93.161,11.88696294]
[1773649980556,33.74,93.235,93.181,11.89455147]
[1773649981861,3.68616454,93.23,93.181,11.89455147]
[1773649984062,3.68616454,93.26,93.201,11.90786857]
[1773649984266,3.68616454,93.25,93.201,11.90786857]
[1773649984966,3.68616454,93.26,93.201,11.90786857]
[1773649986363,3.68616454,93.25,93.201,11.90786857]
[1773649986764,3.68616454,93.23,93.171,11.97021126]
[1773649986967,3.68616454,93.22,93.171,11.97021126]
[1773649987563,3.68616454,93.2,93.171,11.97021126]
[1773649987770,9.92017482,93.267,93.171,11.97021126]
[1773649988067,3.68616454,93.21,93.171,11.97021126]
[1773649988858,3.68616454,93.19,93.151,11.97040609]
[1773649989066,3.68616454,93.18,93.151,11.97040609]
[1773649989863,3.68616454,93.18,93.12,15.63943951]
[1773649990064,3.68616454,93.17,93.121,11.95327497]
[1773649990267,3.68616454,93.16,93.121,11.95327497]
[1773649990969,3.68616454,93.17,93.121,11.95327497]
[1773649995171,3.68616454,93.18,93.121,11.95327497]
[1773649996369,3.68616454,93.16,93.121,11.95327497]
[1773649996573,3.68616454,93.15,93.121,11.95327497]
[1773649996776,3.68616454,93.15,93.1,3.68616454]
[1773649997075,3.68616454,93.16,93.101,12.05149421]
[1773649997276,3.68616454,93.15,93.101,12.05149421]
[1773649999877,3.68616454,93.14,93.101,12.05149421]
[1773650000378,3.68616454,93.15,93.101,12.05149421]
[1773650003673,3.68616454,93.14,93.101,12.05149421]
[1773650005780,3.68616454,93.15,93.101,12.05149421]
[1773650006085,3.68616454,93.16,93.101,12.05149421]
[1773650006876,3.68616454,93.15,93.101,12.05149421]
[1773650011476,3.68616454,93.16,93.101,12.05149421]
[1773650012078,19.311,93.197,93.101,12.05149421]
[1773650012079,3.68616454,93.15,93.101,12.05149421]
[1773650012375,3.68616454,93.14,93.101,12.05149421]
[1773650012778,3.689771,93.14,93.101,12.05149421]
[1773650013185,19.311,93.197,93.101,12.05149421]
[1773650013679,3.689771,93.14,93.101,12.05149421]
[1773650016985,3.689771,93.14,93.091,12.07770542]
[1773650018980,3.689771,93.12,93.091,12.07770542]
[1773650019384,3.689771,93.13,93.091,12.07770542]
[1773650020184,3.689771,93.15,93.091,12.07770542]
[1773650020386,3.689771,93.15,93.101,12.04244436]
[1773650023687,3.689771,93.14,93.101,12.04244436]
[1773650024378,3.689771,93.15,93.101,12.04244436]
[1773650024579,3.689771,93.12,93.083,12.00775553]
[1773650024986,3.689771,93.11,93.061,12.00775553]
[1773650025183,3.689771,93.08,93.041,12.00775553]
[1773650026090,3.689771,93.09,93.041,12.00775553]
[1773650027191,3.689771,93.08,93.041,12.00775553]
[1773650027894,3.689771,93.07,93.021,11.98688999]
[1773650029495,3.689771,93.06,93.006,12.00562916]
[1773650029793,3.689771,93.07,93.011,12.00562916]
[1773650030794,3.689771,93.07,93.02,3.689771]
[1773650031196,3.689771,93.07,93.021,12.07829924]
[1773650032595,107.402,93.094,92.974,12.13511952]
[1773650032892,124.0,93.08,92.974,12.13511952]
[1773650033098,3.689771,93.05,92.991,12.13511952]
[1773650033293,3.689771,93.03,92.981,12.13511952]
[1773650034400,3.689771,93.03,92.971,12.12421743]
[1773650034601,3.689771,93.03,92.98,15.79714636]
[1773650034903,3.689771,93.03,92.939,1.8708219]